bitfinex-derivatives/quotes_SOLF0:USTF0_20250202
["timestamp","ask_amount","ask_price","bid_price","bid_amount"]
[1738531977430,0.03258209,203.37,203.33,0.03147243]
[1738531977730,0.03258209,203.37,203.18,5.9237]
[1738531977731,41.2577616,203.35,203.18,5.9237]
[1738531978030,0.89534531,203.34,203.19,3.0963]
[1738531978331,45.5777616,203.35,203.19,3.0963]
[1738531978628,4.32,203.35,203.19,3.0963]
[1738531979025,4.32,203.35,203.25,0.03594081]
[1738531979026,0.03601933,203.29,203.25,0.03594081]
[1738531979529,45.5577616,203.43,203.25,0.03594081]
[1738531979925,41.2577616,203.39,203.22,3.1795]
[1738531980129,41.2577616,203.35,203.22,3.1795]
[1738531980326,41.2577616,203.27,203.08,41.2577616]
[1738531980833,0.02803519,203.2,203.15,0.03691491]
[1738531981028,3.0669,203.34,203.16,41.2577616]
[1738531981233,41.2577616,203.47,203.24,41.2577616]
[1738531981433,4.9167,203.42,203.25,5.8325]
[1738531981834,4.9194,203.31,203.25,5.8325]
[1738531982128,56.1277616,203.47,203.12,41.2577616]
[1738531982129,41.2577616,203.35,203.12,41.2577616]
[1738531982331,41.2577616,203.31,203.12,41.2577616]
[1738531982530,0.03268801,203.26,203.12,41.2577616]
[1738531982836,41.2577616,203.31,203.11,5.8325]
[1738531983025,41.2577616,203.27,203.11,5.8325]
[1738531983223,41.2577616,203.27,203.02,54.35328121]
[1738531983224,41.2577616,203.23,203.02,95.61104281]
[1738531983428,41.2577616,203.19,203.02,54.35328121]
[1738531983626,41.2908026,203.15,203.1,0.03228901]
[1738531984026,4.32,203.14,203.02,54.35328121]
[1738531984430,7.417,203.22,203.02,95.61104281]
[1738531984626,7.417,203.22,203.06,41.2577616]
[1738531984826,7.417,203.22,203.07,5.9705]
[1738531985236,0.03504471,203.17,203.12,0.03333917]
[1738531986336,4.32,203.3,203.12,0.03333917]
[1738531986531,4.9207,203.26,203.12,0.03333917]
[1738531986835,41.2577616,203.36,203.15,41.2577616]
[1738531987028,45.5777616,203.36,203.16,8.944]
[1738531987232,41.2577616,203.36,203.16,8.944]
[1738531987432,0.0302853,203.28,203.24,0.03578789]
[1738531987836,4.918,203.37,203.19,41.2577616]
[1738531988039,0.0302853,203.28,203.24,0.03325236]
[1738531988540,41.2577616,203.36,203.16,8.944]
[1738531988834,0.0302853,203.28,203.24,0.03127135]
[1738531989031,3.1737,203.38,203.24,0.03127135]
[1738531989231,41.2577616,203.4,203.23,41.2577616]
[1738531989434,51.4099616,203.44,203.23,41.2577616]
[1738531989640,4.9168,203.42,203.23,41.2577616]
[1738531989940,51.4099616,203.44,203.23,41.2577616]
[1738531990140,0.89501675,203.43,203.23,41.2577616]
[1738531990343,0.89501675,203.43,203.31,0.03337818]
[1738531991436,4.9177,203.38,203.31,0.03337818]
[1738531992237,51.4099616,203.44,203.31,0.03337818]
[1738531992443,4.9167,203.42,203.31,0.03337818]
[1738531992637,4.9167,203.42,203.34,0.03727935]
[1738531993939,4.9171,203.4,203.34,0.03727935]
[1738531994841,4.9168,203.42,203.34,0.03727935]
[1738531995445,4.9172,203.4,203.34,0.03727935]
[1738531995642,41.2577616,203.44,203.34,0.03727935]
[1738531995842,0.89507853,203.43,203.28,9.1389]
[1738531996143,4.9171,203.4,203.37,0.03576136]
[1738531996443,4.24,203.47,203.37,0.03576136]
[1738531996643,4.9168,203.42,203.37,0.03576136]
[1738531996844,41.2577616,203.41,203.24,2.9594]
[1738531997044,4.9168,203.42,203.26,41.2577616]
[1738531997245,4.24,203.47,203.25,3.1541]
[1738531997246,41.2577616,203.44,203.25,3.1541]
[1738531997540,0.89515721,203.43,203.25,3.1541]
[1738531997741,41.2577616,203.4,203.25,3.1541]
[1738531997944,44.4012616,203.48,203.28,41.2577616]
[1738531998245,0.89501725,203.47,203.28,41.2577616]
[1738531998448,0.03167724,203.4,203.36,0.03336825]
[1738531999346,4.9178,203.37,203.36,0.03336825]
[1738531999646,0.03167724,203.4,203.36,0.03336825]
[1738531999846,4.9178,203.37,203.36,0.03336825]
[1738532000345,4.9177,203.38,203.36,0.03336825]
[1738532000840,0.03167724,203.4,203.36,0.03336825]
[1738532003149,4.9174,203.39,203.36,0.03336825]
[1738532003453,0.03167724,203.4,203.36,0.03336825]
[1738532005150,41.28943884,203.4,203.25,3.1541]
[1738532005353,0.89487764,203.39,203.25,3.1541]
[1738532005554,4.918,203.37,203.25,3.1541]
[1738532005755,41.2577616,203.4,203.25,3.1541]
[1738532005951,44.4012616,203.48,203.27,41.2577616]
[1738532006153,0.89496883,203.47,203.27,41.2577616]
[1738532006354,4.916,203.45,203.27,41.2577616]
[1738532006558,0.0339508,203.4,203.35,0.03316019]
[1738532006954,0.89483293,203.51,203.35,41.29092179]
[1738532007258,6.1018,203.52,203.36,2.9412]
[1738532007259,4.9149,203.5,203.36,2.9412]
[1738532007458,0.89483652,203.49,203.36,2.9412]
[1738532007659,0.89483652,203.51,203.36,2.9412]
[1738532007954,0.89483652,203.5,203.36,2.9412]
[1738532008156,0.03183407,203.46,203.41,0.03375713]
[1738532008352,4.9162,203.44,203.41,0.03375713]
[1738532008560,0.03183407,203.46,203.41,0.03375713]
[1738532010152,72.79075575,203.61,203.42,41.2577616]
[1738532010359,0.89438512,203.6,203.46,41.2577616]
[1738532010656,19.82322098,203.61,203.47,9.2147]
[1738532010857,19.82322098,203.61,203.5,41.2577616]
[1738532011059,5.49672098,203.61,203.54,41.2577616]
[1738532011254,81.00863135,203.64,203.54,41.2577616]
[1738532011462,42.53775423,203.62,203.58,41.2577616]
[1738532011964,37.82885423,203.62,203.58,41.29433467]
[1738532012663,81.00863135,203.64,203.58,41.29433467]
[1738532012863,135.01438559,203.65,203.63,41.2577616]
[1738532013160,48.60241891,203.65,203.63,41.2577616]
[1738532013363,104.19318541,203.73,203.63,41.2577616]
[1738532013557,155.75229427,203.67,203.63,41.2577616]
[1738532013761,54.2516592,203.79,203.63,41.2577616]
[1738532013959,54.2516592,203.79,203.73,41.2577616]
[1738532014460,54.2516592,203.79,203.77,41.2577616]
[1738532014671,155.75229427,203.83,203.77,41.2577616]
[1738532014962,155.75229427,203.83,203.82,41.2577616]
[1738532015774,6.1128,204.02,203.82,41.2577616]
[1738532016370,6.1128,204.02,203.9,0.03224284]
[1738532016570,41.2577616,203.95,203.9,0.03224284]
[1738532016767,4.9034,203.97,203.91,32.57379028]
[1738532017065,41.2577616,203.99,203.91,32.57379028]
[1738532017271,4.905,203.91,203.73,4.16]
[1738532017572,41.2577616,203.91,203.73,4.16]
[1738532017771,33.93273505,203.91,203.8,0.0330898]
[1738532018163,41.2577616,203.87,203.8,0.0330898]
[1738532018770,41.2577616,203.96,203.74,41.2577616]
[1738532018969,41.2577616,203.92,203.81,0.03388643]
[1738532019168,4.9067,203.84,203.82,52.14278014]
[1738532019369,41.2577616,203.88,203.82,52.14278014]
[1738532019567,41.2577616,203.84,203.78,78.21417022]
[1738532019769,41.2577616,203.84,203.81,0.03741421]
[1738532020071,41.2577616,203.82,203.78,58.32867022]
[1738532020271,41.2577616,203.82,203.65,195.53542555]
[1738532020468,41.2577616,203.77,203.65,195.53542555]
[1738532020867,46.1661616,203.77,203.65,195.53542555]
[1738532021068,41.2577616,203.77,203.65,195.53542555]
[1738532021263,0.03429595,203.73,203.69,0.0374415]
[1738532022673,4.94359595,203.73,203.69,0.0374415]
[1738532022981,4.9103,203.69,203.53,41.2577616]
[1738532023172,41.29205755,203.73,203.54,9.2389]
[1738532023374,41.2577616,203.73,203.54,9.2389]
[1738532023576,4.9107,203.67,203.54,9.2389]
[1738532024073,4.9108,203.67,203.54,9.2389]
[1738532024273,0.03514951,203.63,203.58,0.03195427]
[1738532024669,4.9102,203.69,203.54,9.2389]
[1738532025078,0.034285,203.63,203.58,0.03520617]
[1738532026180,4.9123,203.6,203.58,0.01330617]
[1738532026680,4.9134,203.56,203.42,8.7985]
[1738532026978,41.2577616,203.61,203.42,8.7985]
[1738532027881,0.03102144,203.54,203.49,0.03118653]
[1738532029077,4.9112,203.65,203.49,0.03118653]
[1738532029277,4.1,203.7,203.52,41.2577616]
[1738532029580,4.1,203.7,203.53,3.1689]
[1738532029780,41.2577616,203.69,203.53,3.1689]
[1738532030379,0.03762179,203.63,203.59,0.0369401]
[1738532031680,4.1,203.8,203.6,41.2577616]
[1738532031885,41.2577616,203.77,203.59,0.0369401]
[1738532032085,41.2577616,203.77,203.56,41.2577616]
[1738532032282,4.9099,203.7,203.56,41.2577616]
[1738532032683,41.2577616,203.73,203.54,6.1722]
[1738532032883,0.03548243,203.65,203.61,0.0355979]
[1738532033386,41.2577616,203.73,203.54,6.1722]
[1738532033583,0.03094195,203.65,203.61,0.03681488]
[1738532033790,4.1,203.8,203.61,0.03681488]
[1738532033985,4.1,203.8,203.59,41.2577616]
[1738532033986,4.9089,203.74,203.59,41.2577616]
[1738532034183,41.2577616,203.81,203.59,41.2577616]
[1738532035081,41.2577616,203.81,203.68,0.03291384]
[1738532035285,4.9087,203.75,203.68,0.03291384]
[1738532035482,4.9087,203.75,203.59,41.2577616]
[1738532035990,4.9087,203.75,203.69,0.03320867]
[1738532036488,41.2577616,203.81,203.69,0.03320867]
[1738532036690,41.2577616,203.74,203.69,0.03320867]
[1738532036886,4.9099,203.7,203.69,0.03320867]
[1738532037983,4.9093,203.73,203.69,0.03320867]
[1738532038287,41.2577616,203.81,203.69,0.03320867]
[1738532038788,41.2577616,203.89,203.69,0.03320867]
[1738532038993,41.3897616,203.97,203.75,41.2577616]
[1738532039184,0.89279271,203.96,203.76,8.9554]
[1738532039387,41.2577616,203.93,203.76,8.9554]
[1738532039589,41.2577616,203.89,203.84,0.03656402]
[1738532039788,4.1,203.88,203.76,5.7866]
[1738532040091,41.2577616,203.85,203.69,3.1688]
[1738532040692,41.2577616,203.81,203.69,3.1688]
[1738532040889,41.2577616,203.81,203.65,5.7866]
[1738532041199,0.03752376,203.77,203.73,0.03109196]
[1738532041391,4.9085,203.76,203.73,0.03109196]
[1738532041592,41.29528536,203.77,203.73,0.03109196]
[1738532041791,4.1,203.76,203.56,3.1688]
[1738532042088,41.2577616,203.71,203.56,3.1688]
[1738532042494,4.9117,203.63,203.54,8.765]
[1738532042695,41.2577616,203.67,203.54,8.765]
[1738532043198,0.03205052,203.61,203.56,0.03092355]
[1738532043395,41.2577616,203.59,203.44,5.7915]
[1738532043693,41.2577616,203.59,203.42,52.6420679]
[1738532043694,41.2577616,203.55,203.42,52.6420679]
[1738532043891,41.2577616,203.51,203.42,52.6420679]
[1738532044091,41.2577616,203.59,203.42,52.6420679]
[1738532044298,41.2577616,203.63,203.46,41.2577616]
[1738532044490,41.2577616,203.67,203.46,41.2577616]
[1738532044691,4.9109,203.66,203.5,41.2577616]
[1738532044996,41.2577616,203.76,203.54,41.2577616]
[1738532045295,4.1,203.77,203.58,41.2577616]
[1738532045497,41.2577616,203.76,203.54,41.2577616]
[1738532045889,41.2577616,203.72,203.51,5.7606]
[1738532046091,41.2577616,203.72,203.63,0.03334787]
[1738532046092,0.03524038,203.67,203.63,0.03334787]
[1738532046492,4.9113,203.64,203.63,0.03334787]
[1738532046692,45.3577616,203.64,203.51,5.7606]
[1738532046892,4.9123,203.61,203.51,5.7606]
[1738532047098,45.3577616,203.64,203.51,5.7606]
[1738532047299,4.1,203.64,203.51,5.7606]
[1738532047496,4.9129,203.58,203.51,5.7606]
[1738532047798,4.1,203.64,203.51,5.7606]
[1738532047999,0.03143321,203.57,203.52,0.03102136]
[1738532050997,41.2577616,203.72,203.55,41.2577616]
[1738532051198,41.2577616,203.72,203.52,0.03102136]
[1738532051398,4.1,203.73,203.51,5.7606]
[1738532051698,41.2577616,203.72,203.51,5.7606]
[1738532051899,4.9119,203.62,203.51,5.7606]
[1738532052202,4.9119,203.62,203.59,0.03612867]
[1738532052401,4.9122,203.61,203.59,0.03612867]
[1738532052597,41.2577616,203.68,203.51,5.7606]
[1738532052799,0.03772385,203.62,203.58,0.03585083]
[1738532053095,41.2577616,203.6,203.47,3.0076]
[1738532053500,41.2577616,203.6,203.42,6.308]
[1738532053501,4.9136,203.55,203.42,6.308]
[1738532053698,41.2577616,203.56,203.42,6.308]
[1738532053997,41.2577616,203.56,203.35,3.1384]
[1738532053998,41.2577616,203.52,203.35,3.1384]
[1738532054400,0.03382153,203.46,203.41,0.03563738]
[1738532055104,4.9165,203.43,203.41,0.00963738]
[1738532055306,41.2577616,203.44,203.32,52.6420679]
[1738532055496,41.2577616,203.39,203.32,52.6420679]
[1738532055698,4.9188,203.34,203.32,52.6420679]
[1738532056399,4.9196,203.3,203.19,8.8652]
[1738532056597,0.03680528,203.35,203.31,0.03713617]
[1738532057001,0.03680528,203.35,203.19,8.8652]
[1738532057002,4.1,203.37,203.19,8.8652]
[1738532057201,0.03376595,203.35,203.31,0.03731242]
[1738532057400,4.1,203.37,203.19,8.8652]
[1738532057901,4.9213,203.23,203.19,8.8652]
[1738532058202,41.2577616,203.31,203.15,3.004]
[1738532058398,4.9208,203.25,203.15,3.004]
[1738532058704,41.2577616,203.31,203.15,3.004]
[1738532058899,4.9213,203.23,203.18,0.03217662]
[1738532059104,0.03454653,203.22,203.18,0.03217662]
[1738532059301,41.2577616,203.27,203.12,9.0663]
[1738532059501,0.03573163,203.22,203.18,0.03461108]
[1738532059704,0.03573163,203.22,203.18,0.00611108]
[1738532059901,41.2577616,203.19,203.02,41.2577616]
[1738532060102,4.9243,203.11,203.02,41.2577616]
[1738532060302,41.2577616,203.19,203.02,41.2577616]
[1738532060900,41.2577616,203.19,203.0,9.0887]
[1738532061101,4.1,203.25,202.98,44.1485616]
[1738532061102,4.96145929,203.13,203.08,0.03317202]
[1738532061303,4.13775929,203.13,203.08,0.03317202]
[1738532061511,4.1,203.13,202.98,41.2577616]
[1738532061813,4.1370898,203.13,203.08,0.03731339]
[1738532062007,4.1,203.13,203.08,0.03731339]
[1738532062213,4.9244,203.1,203.08,0.03731339]
[1738532062715,4.9244,203.1,203.08,1.339e-05]
[1738532062907,41.2577616,203.11,202.84,41.2577616]
[1738532063113,41.2577616,203.1,202.85,12.2698]
[1738532063314,41.2577616,203.1,202.91,41.2577616]
[1738532063510,4.9258,203.05,202.91,41.2577616]
[1738532063709,41.2577616,203.1,202.91,41.2577616]
[1738532064115,4.1,203.13,202.91,41.2577616]
[1738532064313,0.03376346,203.03,202.98,0.03269115]
[1738532064816,4.1,203.13,202.91,41.2577616]
[1738532065110,0.03291075,203.03,202.98,0.03277386]
[1738532065410,0.03291075,203.03,202.91,41.2577616]
[1738532065610,41.2577616,203.1,202.91,41.2577616]
[1738532065915,0.03736275,202.99,202.95,0.03495024]
[1738532066310,41.2577616,203.1,202.91,41.2577616]
[1738532066516,41.2577616,203.18,202.99,41.2577616]
[1738532066713,45.3777616,203.18,203.0,9.3504]
[1738532066916,0.03672199,203.11,203.0,12.3868]
[1738532067114,4.9245,203.1,203.0,12.3868]
[1738532067313,0.03672199,203.11,203.07,0.0338147]
[1738532067918,4.9249,203.08,203.07,0.0338147]
[1738532068818,4.9266,203.01,203.0,9.3504]
[1738532069118,45.3777616,203.06,202.88,3.0571]
[1738532069419,45.3777616,203.06,202.89,9.1871]
[1738532070023,0.03741798,203.0,202.95,0.03602549]
[1738532070211,41.2577616,203.18,202.98,41.2577616]
[1738532070420,0.89623756,203.17,203.02,41.2577616]
[1738532070615,4.12,203.18,203.03,9.1871]
[1738532071110,45.3777616,203.18,203.03,9.1871]
[1738532071515,0.03783719,203.13,203.08,0.03771351]
[1738532071821,0.03783719,203.13,202.94,41.2577616]
[1738532072014,0.93426142,203.13,202.94,41.2577616]
[1738532072221,0.89642423,203.13,202.94,41.2577616]
[1738532072410,41.2577616,203.14,202.94,41.2577616]
[1738532072611,41.3138616,203.17,202.94,41.2577616]
[1738532072815,0.89625,203.16,202.94,41.2577616]
[1738532073216,0.03476458,203.08,203.03,0.03326922]
[1738532073615,0.03476458,203.08,202.94,41.2577616]
[1738532074026,0.03476458,203.08,203.03,0.03306909]
[1738532074324,41.3138616,203.17,203.03,0.03306909]
[1738532074624,4.9264,203.02,202.95,41.2577616]
[1738532075026,41.29533462,203.12,202.91,41.2577616]
[1738532075225,41.2577616,203.12,202.96,0.03178956]
[1738532075527,0.03431361,203.04,202.96,0.03178956]
[1738532075722,0.03431361,203.04,202.92,2.9121]
[1738532075927,0.03431361,203.04,202.98,0.03663416]
[1738532076321,4.927,202.99,202.98,0.03663416]
[1738532077223,0.03431361,203.04,202.98,0.03663416]
[1738532077628,0.03431361,203.04,202.9,5.9728]
[1738532077629,41.29207521,203.04,202.9,5.9728]
[1738532077929,4.12,203.06,202.9,5.9728]
[1738532078630,4.9268,203.0,202.91,41.2577616]
[1738532078927,0.03366104,203.0,202.96,0.03547041]
[1738532079125,14.84,203.26,202.96,41.29323201]
[1738532079126,14.87,203.24,202.96,41.29323201]
[1738532079428,45.4338616,203.17,202.96,41.2577616]
[1738532079625,45.4338616,203.17,202.92,41.2577616]
[1738532079931,41.2577616,203.09,202.92,41.2577616]
[1738532080131,41.2577616,203.09,202.9,5.9728]
[1738532080535,0.03433188,203.03,202.98,0.03648963]
[1738532080731,4.12,203.02,202.98,0.03648963]
[1738532080929,9.0465,203.02,202.9,5.9728]
[1738532081129,4.12,203.02,202.92,41.2577616]
[1738532081332,0.03313246,203.02,202.98,0.03204025]
[1738532085929,4.12,203.15,203.0,41.2577616]
[1738532086135,4.12,203.15,203.01,3.1464]
[1738532086632,4.90854543,203.19,203.01,3.1464]
[1738532086825,4.90854543,203.19,203.02,5.8399]
[1738532087023,4.96151497,203.12,203.08,0.0331685]
[1738532087228,138.7977616,203.25,203.08,41.2909301]
[1738532087530,4.9225,203.18,203.08,41.2577616]
[1738532087730,138.7977616,203.25,203.08,41.2577616]
[1738532088135,138.7977616,203.25,203.04,41.2577616]
[1738532088633,0.03252387,203.17,203.12,0.03784218]
[1738532088835,4.12,203.28,203.12,41.29560378]
[1738532089033,41.3787616,203.33,203.13,3.1538]
[1738532089228,4.9203,203.27,203.13,3.1538]
[1738532089530,4.12,203.32,203.14,5.7859]
[1738532090134,0.03591883,203.25,203.21,0.0352017]
[1738532090431,0.03591883,203.25,203.02,41.2577616]
[1738532090432,4.9234,203.14,203.02,41.2577616]
[1738532090639,41.2577616,203.21,203.02,41.2577616]
[1738532090833,41.2577616,203.25,203.02,41.2577616]
[1738532091031,4.9218,203.21,203.06,41.2577616]
[1738532091327,41.2577616,203.33,203.14,41.2577616]
[1738532091531,4.9213,203.23,203.15,8.7576]
[1738532091728,0.03581759,203.16,203.15,8.7576]
[1738532091932,4.9213,203.23,203.15,8.7576]
[1738532092232,4.12,203.32,203.15,8.7576]
[1738532092433,4.9206,203.26,203.15,8.7576]
[1738532092936,4.9191,203.32,203.2,41.2577616]
[1738532093138,0.0333241,203.23,203.2,41.2577616]
[1738532093332,41.2577616,203.43,203.2,41.2577616]
[1738532093539,30.88871544,203.46,203.25,41.2577616]
[1738532093731,79.5659263,203.49,203.29,41.2577616]
[1738532094038,83.6859263,203.49,203.3,5.9188]
[1738532094429,79.5659263,203.49,203.3,5.9188]
[1738532094639,0.03364583,203.42,203.37,41.29176539]
[1738532094839,79.5659263,203.49,203.37,41.29176539]
[1738532095038,41.2577616,203.58,203.37,41.29176539]
[1738532095338,41.2577616,203.58,203.37,41.2577616]
[1738532096043,0.03400201,203.5,203.45,0.03637528]
[1738532096444,6.78629277,203.61,203.45,41.2577616]
[1738532096644,6.78629277,203.61,203.45,41.29072847]
[1738532096839,6.78629277,203.61,203.42,6.3005]
[1738532097040,41.2577616,203.58,203.43,2.9913]
[1738532097443,41.2577616,203.54,203.42,6.3005]
[1738532097640,4.1,203.53,203.42,6.3005]
[1738532097843,4.13381027,203.53,203.48,0.03666892]
[1738532098033,4.9143,203.52,203.48,0.03666892]
[1738532098237,0.03381027,203.53,203.48,0.03666892]
[1738532099043,4.9148,203.5,203.48,0.03666892]
[1738532100341,41.29157187,203.53,203.36,2.9913]
[1738532100745,4.1,203.56,203.39,41.2577616]
[1738532101446,41.2577616,203.61,203.43,41.2577616]
[1738532101646,0.0335526,203.5,203.45,0.03768728]
[1738532101846,4.1,203.62,203.45,0.03768728]
[1738532102043,41.2577616,203.61,203.44,9.0738]
[1738532102543,4.1,203.62,203.44,9.0738]
[1738532102741,41.2577616,203.65,203.47,41.2577616]
[1738532103044,0.03776085,203.55,203.51,0.03693763]
[1738532103244,41.5372616,203.68,203.51,0.03693763]
[1738532103443,4.1,203.67,203.49,4.9147]
[1738532103644,4.1,203.66,203.48,3.1681]
[1738532103945,4.9128,203.58,203.48,3.1681]
[1738532104247,4.1,203.66,203.51,41.2577616]
[1738532104638,0.03272473,203.55,203.51,41.29176461]
[1738532104841,4.1,203.66,203.48,3.1681]
[1738532105146,0.03208011,203.55,203.51,0.03453286]
[1738532105341,41.2577616,203.72,203.51,0.03453286]
[1738532105644,4.99383514,203.71,203.54,4.9137]
[1738532105842,4.99383514,203.71,203.48,3.1681]
[1738532105843,101.58,203.74,203.55,41.2577616]
[1738532106040,0.3447,203.75,203.56,5.9635]
[1738532106544,4.9106,203.67,203.58,4.9127]
[1738532106741,4.9106,203.67,203.63,0.03691366]
[1738532107145,4.9109,203.66,203.63,0.03691366]
[1738532107446,0.02664897,203.68,203.63,0.03691366]
[1738532107647,4.9107,203.67,203.63,0.03691366]
[1738532107849,0.02664897,203.68,203.63,0.03691366]
[1738532111152,41.2577616,203.84,203.63,0.03691366]
[1738532111556,41.2577616,203.79,203.57,47.1788616]
[1738532112347,41.2577616,203.83,203.66,0.03569863]
[1738532112348,41.2577616,203.75,203.66,0.03569863]
[1738532112556,4.1,203.74,203.66,0.03569863]
[1738532112757,4.9123,203.6,203.57,2.8914]
[1738532112957,41.2577616,203.67,203.56,5.9635]
[1738532113455,4.9124,203.6,203.59,0.03562392]
[1738532114451,4.1,203.62,203.5,9.0403]
[1738532114960,4.1,203.62,203.32,4.1]
[1738532115152,4.1,203.62,203.41,8.8793]
[1738532115354,41.2577616,203.59,203.41,8.8793]
[1738532115558,4.9147,203.5,203.41,8.8793]
[1738532115762,4.9147,203.5,203.49,0.0340058]
[1738532116061,4.9147,203.5,203.41,8.8793]
[1738532116259,41.2577616,203.59,203.41,8.8793]
[1738532116260,4.9153,203.48,203.41,8.8793]
[1738532116556,41.2577616,203.72,203.43,0.03366798]
[1738532116756,0.89386111,203.71,203.56,41.2577616]
[1738532116961,41.2577616,203.78,203.57,2.9015]
[1738532117163,4.9101,203.7,203.57,2.9015]
[1738532117463,41.2577616,203.78,203.57,2.9015]
[1738532117663,0.1529,203.81,203.6,41.2577616]
[1738532117963,0.89339394,203.8,203.65,0.03450756]
[1738532118463,41.2577616,203.71,203.57,2.9015]
[1738532118657,45.3577616,203.71,203.57,2.9015]
[1738532119358,45.3577616,203.71,203.5,41.2577616]
[1738532119558,3.2904,203.7,203.49,3.1179]
[1738532119766,41.2577616,203.67,203.49,3.1179]
[1738532120260,4.9126,203.59,203.57,0.0357844]
[1738532120663,0.03133066,203.62,203.42,41.2577616]
[1738532121160,41.2577616,203.63,203.43,2.9267]
[1738532121465,0.1442,203.69,203.43,5.9483]
[1738532121466,41.2577616,203.59,203.43,5.9483]
[1738532121662,4.1,203.58,203.43,5.9483]
[1738532121961,41.2577616,203.55,203.39,5.8659]
[1738532122160,41.2577616,203.51,203.39,5.8659]
[1738532122358,4.9169,203.41,203.35,2.9267]
[1738532122660,41.2577616,203.51,203.35,2.9267]
[1738532122661,41.2577616,203.55,203.35,2.9267]
[1738532122963,41.2577616,203.51,203.35,2.9267]
[1738532123155,41.2577616,203.47,203.31,5.8659]
[1738532123357,4.94704236,203.45,203.41,0.03574569]
[1738532123555,0.03104236,203.45,203.31,5.8659]
[1738532123966,4.4981,203.46,203.31,5.8659]
[1738532124168,4.4981,203.46,203.27,2.9267]
[1738532124467,4.9172,203.4,203.27,2.9267]
[1738532124662,4.4981,203.46,203.27,2.9267]
[1738532124863,0.03285993,203.39,203.34,0.03294761]
[1738532125065,4.9181,203.37,203.34,0.03294761]
[1738532125261,0.03285993,203.39,203.34,0.03294761]
[1738532125461,4.1,203.53,203.34,41.29070921]
[1738532125656,4.1,203.53,203.35,9.0488]
[1738532126074,4.9164,203.43,203.35,9.0488]
[1738532126473,4.1,203.53,203.35,9.0488]
[1738532126674,0.03350849,203.41,203.37,0.03467764]
[1738532127070,4.9186,203.34,203.27,2.9267]
[1738532127275,41.2577616,203.44,203.27,2.9267]
[1738532127276,4.1,203.41,203.27,2.9267]
[1738532127575,41.2577616,203.4,203.26,5.8762]
[1738532127772,41.2577616,203.4,203.18,41.2577616]
[1738532127773,4.9203,203.27,203.18,41.2577616]
[1738532127967,41.2577616,203.4,203.19,5.8762]
[1738532128175,41.2577616,203.36,203.19,5.8762]
[1738532128573,41.2577616,203.32,203.14,41.2577616]
[1738532128774,0.0361676,203.3,203.25,0.03203004]
[1738532129076,4.9223,203.19,203.14,53.8532837]
[1738532129578,4.1,203.29,203.14,53.8532837]
[1738532129779,41.2577616,203.28,203.14,53.8532837]
[1738532130279,4.923,203.16,203.14,53.8532837]
[1738532130975,4.9234,203.14,203.13,0.03474971]
[1738532131376,41.2577616,203.24,203.07,5.8762]
[1738532131675,0.03285976,203.16,203.11,0.03717603]
[1738532132078,0.89574705,203.27,203.1,41.2577616]
[1738532132279,138.6177616,203.36,203.14,41.2577616]
[1738532132474,4.1,203.33,203.15,2.9857]
[1738532132675,4.9211,203.24,203.16,4.9228]
[1738532133380,0.03118,203.22,203.18,0.0310871]
[1738532134581,4.922,203.2,203.18,0.0310871]
[1738532135380,4.9239,203.12,203.08,3.0969]
[1738532135777,4.1,203.21,203.07,5.8762]
[1738532135976,41.2577616,203.27,203.07,5.8762]
[1738532136177,4.1,203.29,203.1,41.2577616]
[1738532136375,4.9222,203.19,203.11,7.9466]
[1738532136678,41.2577616,203.19,202.98,41.2577616]
[1738532136878,41.2577616,203.19,203.01,3.1454]
[1738532137272,41.2577616,203.19,203.02,5.8845]
[1738532138075,4.9246,203.09,203.08,0.03617679]
[1738532138584,4.9262,203.03,202.99,3.0226]
[1738532138879,4.1,203.13,202.99,3.0226]
[1738532139080,4.1,203.13,202.95,9.2167]
[1738532139381,41.2577616,203.15,202.95,9.2167]
[1738532139573,4.1,203.15,203.03,4.9261]
[1738532139779,0.03301599,203.06,203.02,0.0310371]
[1738532140081,4.1,203.15,203.03,46.1835616]
[1738532140279,0.03473653,203.06,203.03,46.1835616]
[1738532140477,4.1,203.15,203.03,46.1835616]
[1738532140677,4.1,203.15,203.03,4.9258]
[1738532141282,4.1,203.15,202.95,50.4744616]
[1738532141475,41.2577616,203.12,202.95,9.2167]
[1738532141680,0.03623131,203.07,203.03,0.03278181]
[1738532142184,4.9254,203.06,203.03,0.03278181]
[1738532142483,0.03623131,203.07,203.03,0.03278181]
[1738532144580,4.9254,203.06,203.03,0.03278181]